Workbook

Sheet PFP
A1: PROPOSTA FINANCEIRA DO PROJETO | J1: CODIGO:
J2: PFP
A3: NOME DA CONSULTORA:
A5: PROJETO: | F5: CONTRATANTE: | J5: BASE:
A6: ELABORAÇÃO DE ESTUDO DE VIABILIDADE TÉCNICA, ECONÔMICA E AMBIENTAL, ESTUDOS BÁSICOS, PROJETO BÁSICO E PROJETO EXECUTIVO PARA CONSTRUÇÃO DA PONTE SOBRE O RIO SÃO DOMINGOS E INFRAESTRUTURA COMPLETA, NO MUNICÍPIO DE PARANÃ, NO ESTADO DE TOCANTINS | F6: CODEVASF (SEDE) | J6: 2023-11-01
A7: Base | B7: Código | D7: Categoria / Insumo | E7: Uni | F7: Qde | G7: CUD | H7: PU | I7: FatorK | J7: CT | K7: PT | L7: Encargos COMP E ADICIONAIS
A8: SICRO | B8: P8061 | D8: Engenheiro coordenador (P8061) | E8: mês | F8: ='CRO1_Ins-Pro'!D5 -> 0.8 | G8: 17126.55 | H8: =ROUND(I8*G8,2) -> 24732.45 | I8: =PFP2.3_FatorKc!E35 -> 1.4441 | J8: =ROUND(F8*G8,2) -> 13701.24 | K8: =ROUND(F8*H8,2) -> 19785.96 | L8: =14633.42-13607.04 -> 1026.38
A9: SICRO | B9: P8066 | D9: Engenheiro pleno (P8066) | E9: mês | F9: ='CRO1_Ins-Pro'!D6 -> 5 | G9: 11669.34 | H9: =ROUND(I9*G9,2) -> 27499.97 | I9: =PFP2.1_FatorKa!E36 -> 2.3566 | J9: =ROUND(F9*G9,2) -> 58346.7 | K9: 137499.85 | L9: =10299.82-9271.29 -> 1028.53
A10: SICRO | B10: P8065 | D10: Engenheiro júnior (P8065) | E10: mês | F10: ='CRO1_Ins-Pro'!D7 -> 0.8 | G10: 11220 | H10: =ROUND(I10*G10,2) -> 26441.05 | I10: =PFP2.1_FatorKa!E36 -> 2.3566 | J10: =ROUND(F10*G10,2) -> 8976 | K10: 21152.84 | L10: =9942.82-8914.29 -> 1028.53
A11: SINAPI | B11: 40807 | D11: Desenhista (40807) | E11: mês | F11: ='CRO1_Ins-Pro'!D8 -> 5 | G11: 2660.12 | H11: 6268.84 | I11: =PFP2.1_FatorKa!E36 -> 2.3566 | J11: 13300.6 | K11: 31344.2 | L11: =3022.03-1944.87 -> 1077.16
A12: SICRO | B12: P8147 | D12: Técnico de projetos/obra (P8147) | E12: mês | F12: ='CRO1_Ins-Pro'!D9 -> 4 | G12: 3118.31 | H12: =ROUND(I12*G12,2) -> 7348.61 | I12: =PFP2.1_FatorKa!E36 -> 2.3566 | J12: 12473.24 | K12: 29394.44 | L12: =3553.62-2489.97 -> 1063.65
A13: SICRO | D13: Encargos Comp. e Adicionais | E13: mês | F13: =SUM(F8:F12) -> 15.6 | G13: =(F8*L8+F9*L9+F10*L10+F11*L11+F12*L12)/SUM(F8:F12) -> 1053.01141 | H13: 1322.37 | I13: =PFP3_FatorKd!$E$17 -> 1.2558 | J13: =ROUND(F13*G13,2) -> 16426.98 | K13: =ROUND(F13*H13,2) -> 20628.97
A14: PROP | B14: N.A | D14: Auxilio Transporte Técnicos | E14: mês | F14: ='CRO1_Ins-Pro'!D11 -> 0 | G14: Já incluso* | H14: 0 | I14: 0 | J14: 0 | K14: =ROUND(F14*H14,2) -> 0
A15: PROP | B15: N.A | D15: Auxilio Transporte Secretária | E15: mês | F15: ='CRO1_Ins-Pro'!D12 -> 0 | G15: Já Incluso* | H15: 0 | I15: 0 | J15: 0 | K15: 0
A16: CODE | B16: Próprio | D16: Relatório Parcial | E16: un | F16: ='CRO1_Ins-Pro'!D13 -> 0 | G16: 33.35 | H16: 41.88 | I16: =PFP3_FatorKd!$E$17 -> 1.2558 | J16: 0 | K16: =ROUND(F16*H16,2) -> 0
A17: CODE | B17: Próprio | D17: Relatório Final | E17: un | F17: ='CRO1_Ins-Pro'!D14 -> 4 | G17: 1478.8 | H17: 1857.08 | I17: =PFP3_FatorKd!$E$17 -> 1.2558 | J17: 5915.2 | K17: =ROUND(F17*H17,2) -> 7428.32
A18: CODE | B18: Próprio | D18: Total Serviços Cartográficos | E18: un | F18: 1 | G18: - | H18: =PFP1.1_Topo!G20 -> 23373.07 | I18: - | J18: - | K18: =ROUND(F18*H18,2) -> 23373.07
A19: CODE | B19: Próprio | D19: Total Serviços Geotécnicos | E19: un | F19: 1 | G19: - | H19: =PFP1.2_Geo!G33 -> 128528.11 | I19: - | J19: - | K19: =ROUND(F19*H19,2) -> 128528.11
A20: TOTAL DOS CUSTOS DIRETOS | H20: =SUM(J8:J19) -> 129139.96
A21: TOTAL DOS ENCARGOS E DISPESAS DIVERSAS | H21: =H22-H20 -> 138094.62
A22: TOTAL DA PROPOSTA A PREÇO GLOBAL | H22: =SUM(K8:K17) -> 267234.58
A23: TOTAL DA PROPOSTA A PREÇO UNITÁRIO | H23: =SUM(K18:K19) -> 151901.18
A24: TOTAL DA PROPOSTA | H24: =H22+H23 -> 419135.76
A25: OBSERVAÇÃO:
A26: *Encargos Complementares e adicionais já incluem auxílio transporte
A27: Alocar os Insumos MO, com respectivo FatorK, dentro da categoria de vínculo contratual (celetista, autonomo, societario)
A28: Uni - unidade de medição do insumo;
A29: Qde - Quantidade do Insumo (não pode ocorrer alteração pela Licitante)
A30: CUD - Custo Unitário Direto do Insumo (sem encargos, taxas e impostos, valor não pode ser maior que o Orçado pela Codevasf)
A31: CT - Custo Total (sem encargos, taxas e impostos) - CT = Qde x CUD
A32: FatorK - Taxa de Ressarcimento de Despesas e Encargos (detalhar composição nas Planilhas "PFP2.1", "PFP2.2", "PFP3")
A33: PU - Preço Unitário do Insumo (incluído encargos, taxas e impostos) - PU = CUD x FatorK
A34: PT - Preço Total do Insumo (incluído encargos, taxas e impostos) - PT = Qde x PU
A35: P - Profissionais nível superior nas áreas de Engenharia, Química, Arquitetura, Agronomia e Veterinária, conforme disposições da Lei 4.950-A/66
A36: S - Profissionais de nível superior nas demais áreas de atuação, incluindo Arqueólogo, Biólogo, Geógrafo e Sociólogo
A37: T - Profissionais de nível médio técnico nas diversas áreas de atuação
A38: A - Profissionais de nível médio de apoio técnico-administrativo
A40: Observações:
A41: 1- Sistemas oficiais de referência de preços utilizados
A42: Tabela Consultiva do DNIT-Jul/2023.

Sheet PFP1.1_Topo
A1: SERVIÇOS TOPOGRÁFICOS/CARTOGRÁFICOS | G1: CODIGO:
G2: PFP-1.1
A3: NOME DA EMPRESA:
A5: PROJETO: | E5: CONTRATANTE: | G5: =PFP!J5 -> BASE:
A6: =PFP!A6 -> ELABORAÇÃO DE ESTUDO DE VIABILIDADE TÉCNICA, ECONÔMICA E AMBIENTAL, ESTUDOS BÁSICOS, PROJETO BÁSICO E PROJETO EXECUTIVO PARA CONSTRUÇÃO DA PONTE SOBRE O RIO SÃO DOMINGOS E INFRAESTRUTURA COMPLETA, NO MUNICÍPIO DE PARANÃ, NO ESTADO DE TOCANTINS | E6: CODEVASF (SEDE) | G6: =PFP!J6 -> 2023-11-01
A7: Cod. | B7: Base | C7: Insumos | D7: Uni | E7: Qde | F7: Preço Unitário (PU) | G7: Preço Total (PT)
A8: TP01 | B8: CODE | C8: Nivelamento Geométrico dos Eixos classe IIN | D8: km | E8: 3 | F8: 828.44 | G8: =ROUND(F8*E8,2) -> 2485.32
A9: TP02 | B9: CODE | C9: Seções Tranversais | D9: km | E9: 6 | F9: 394.36 | G9: =ROUND(F9*E9,2) -> 2366.16
A10: TP03 | B10: CODE | C10: Poligonal Classe IIP | D10: km | E10: 3 | F10: 1250.71 | G10: =ROUND(F10*E10,2) -> 3752.13
A11: TP04 | B11: CODE | C11: Pontos GPS de dupla frequencia (L1/L2) | D11: un | E11: 5 | F11: 1223.41 | G11: 6117.05
A12: TP05 | B12: CODE | C12: Cadastro Físico | D12: ha | E12: 12 | F12: 13.65 | G12: 163.8
A13: TP06 | B13: CODE | C13: Cadastro Agrícola | D13: ha | E13: 12 | F13: 4.55 | G13: 54.6
A14: TP07 | B14: CODE | C14: Cadastro Jurídico | D14: ha | E14: 12 | F14: 9.1 | G14: 109.2
A15: TP08 | B15: CODE | C15: Cadastro Socioeconomico | D15: ha | E15: 12 | F15: 3.03 | G15: 36.36
A16: TP10 | B16: CODE | C16: Marco de Concreto (12x18x60cm) | D16: un | E16: 8 | F16: 66 | G16: 528
A17: TP11 | B17: CODE | C17: Barrote de Madeira (10x10x50cm) | D17: un | E17: 40 | F17: 51.81 | G17: 2072.4
A18: TP12 | B18: CODE | C18: Piquetes de Madeira (2x2x20cm) | D18: un | E18: 350 | F18: 10.09 | G18: 3531.5
A19: TP13 | B19: CODE | C19: Picada Manual p/ levantamento TP | D19: km | E19: 1 | F19: 2156.55 | G19: 2156.55
A20: TOTAL SERVIÇOS TOPOGRÁFICOS | G20: =SUM(G8:G19) -> 23373.07
A21: OBSERVAÇÃO:
A22: Uni - unidade de medição do insumo;
A23: Qde - Quantidade do Insumo (não pode ocorrer alteração pela Licitante)
A24: PU - Preço Unitário (composições padrão da Codevasf, já incluso o FatorK)
A25: PT - Preço Total (incluído encargos, taxas e impostos) - PT = Qde x PU

Sheet PFP1.2_Geo
A1: SERVIÇOS GEOLÓGICOS/GEOTÉCNICOS | G1: CODIGO:
G2: PFP-1.2
A3: NOME DA EMPRESA:
A5: PROJETO: | E5: CONTRATANTE: | G5: =PFP!J5 -> BASE:
A6: =PFP!A6 -> ELABORAÇÃO DE ESTUDO DE VIABILIDADE TÉCNICA, ECONÔMICA E AMBIENTAL, ESTUDOS BÁSICOS, PROJETO BÁSICO E PROJETO EXECUTIVO PARA CONSTRUÇÃO DA PONTE SOBRE O RIO SÃO DOMINGOS E INFRAESTRUTURA COMPLETA, NO MUNICÍPIO DE PARANÃ, NO ESTADO DE TOCANTINS | E6: CODEVASF (SEDE) | G6: =PFP!J6 -> 2023-11-01
A7: Cod. | B7: Base | C7: Insumos | D7: Uni | E7: Qde | F7: Preço Unitário (PU) | G7: Preço Total (PT)
A8: GT 1 | B8: CODE | C8: Sondagem a Percussão SPT
A9: GT1.1 | B9: CODE | C9: Sondagem Percussão: (Des)Mobilização por equipe | D9: un | E9: 1 | F9: 1249.33 | G9: =E9*F9 -> 1249.33
A10: GT1.2 | B10: CODE | C10: Sondagem Percursão: com SPT - Terrestre | D10: m | E10: 50 | F10: 94.11 | G10: =E10*F10 -> 4705.5
A11: GT 2 | B11: CODE | C11: Ensaios:
A12: GT 2.1 | B12: CODE | C12: Ensaios de solo
A13: GT 2.1.1 | B13: CODE | C13: Ensaio: Umidade Natural | D13: un | E13: 30 | F13: 68.87 | G13: =E13*F13 -> 2066.1
A14: GT 2.1.2 | B14: CODE | C14: Ensaio: Densidade Natural | D14: un | E14: 30 | F14: 50.43 | G14: 1512.9
A15: GT 2.1.3 | B15: CODE | C15: Ensaio: Limite de Liquidez | D15: un | E15: 30 | F15: 150 | G15: 4500
A16: GT 2.1.4 | B16: CODE | C16: Ensaio: Limite de Plasticidade | D16: un | E16: 30 | F16: 150 | G16: 4500
A17: GT 2.1.5 | B17: CODE | C17: Ensaio: Granulometria por Peneiramento | D17: un | E17: 30 | F17: 150 | G17: 4500
A18: GT 2.1.6 | B18: CODE | C18: Ensaio: Granulometria por Sedimentação | D18: un | E18: 30 | F18: 124.77 | G18: 3743.1
A19: GT 2.1.7 | B19: CODE | C19: Ensaio: Massa Especifica Real dos Grãos | D19: un | E19: 45 | F19: 65.78 | G19: 2960.1
A20: GT 2.1.8 | B20: CODE | C20: Ensaio: Massa Específica Aparente "in situ" | D20: un | E20: 45 | F20: 150 | G20: 6750
A21: GT 2.1.9 | B21: CODE | C21: Ensaio: Compactação Proctor Normal | D21: un | E21: 30 | F21: 163.57 | G21: 4907.1
A22: GT 2.1.10 | B22: CODE | C22: Ensaio: Índice de Suporte California e Expansão | D22: un | E22: 60 | F22: 120 | G22: 7200
A23: GT 2.3 | B23: CODE | C23: Ensaios de Análise da Areia
A24: GT 2.3.1 | B24: CODE | C24: Ensaio: Teor de Matéria Orgânica | D24: un | E24: 10 | F24: 200 | G24: 2000
A25: GT 2.3.2 | B25: CODE | C25: Ensaio: Equivalente Areia | D25: un | E25: 10 | F25: 233.98 | G25: 2339.8
A26: GT 2.4 | B26: CODE | C26: Ensaios de Material Pétreo
A27: GT 2.4.1 | B27: CODE | C27: Ensaio: Abrasão los Angeles | D27: un | E27: 10 | F27: 274.71 | G27: 2747.1
A28: GT 2.4.2 | B28: CODE | C28: Ensaio: Índice de Forma | D28: un | E28: 10 | F28: 230.77 | G28: 2307.7
A29: GT 2.4.3 | B29: CODE | C29: Ensaio: Adesividade | D29: un | E29: 10 | F29: 150 | G29: 1500
A30: GT 3 | B30: CODE | C30: Sondagem Mista
A31: 01.21.090 | B31: CPOS | C31: Sondagem Mista: (Des)Mobilização | D31: un | E31: 1 | F31: 6440.38 | G31: =E31*F31 -> 6440.38
A32: C0333 | B32: SEINFRA | C32: Sondagem Mista: em rochas | D32: m | E32: 50 | F32: 1251.98 | G32: =E32*F32 -> 62599
A33: TOTAL SERVIÇOS GEOTÉCNICOS | G33: =SUM(G8:G32) -> 128528.11
A34: LEGENDA:
A35: Uni - unidade de medição do insumo;
A36: Qde - Quantidade do Insumo (não pode ocorrer alteração pela Licitante)
A37: PU - Preço Unitário (composições padrão da Codevasf, já incluso o FatorK)
A38: PT - Preço Total (incluído encargos, taxas e impostos) - PT = Qde x PU

Sheet PFP2.1_FatorKa
A1: DETALHAMENTO DOS ENCARGOS SOCIAIS: Ka | F1: CODIGO:
F2: PFP-2.1
A3: NOME DA CONSULTORA:
A5: PROJETO: | C5: CONTRATANTE: | F5: =PFP!J5 -> BASE:
A6: =PFP!A6 -> ELABORAÇÃO DE ESTUDO DE VIABILIDADE TÉCNICA, ECONÔMICA E AMBIENTAL, ESTUDOS BÁSICOS, PROJETO BÁSICO E PROJETO EXECUTIVO PARA CONSTRUÇÃO DA PONTE SOBRE O RIO SÃO DOMINGOS E INFRAESTRUTURA COMPLETA, NO MUNICÍPIO DE PARANÃ, NO ESTADO DE TOCANTINS | C6: CODEVASF (SEDE) | F6: SINAPI/TO
A7: Cod | B7: DESCRIÇÃO | E7: % | F7: R$
A8: A | B8: ENCARGOS SOCIAIS BÁSICOS | E8: =ROUND(SUM(E9:E17),4) -> 0.378 | F8: =ROUND(E8*SUMIF(PFP!$B$8:$B$19,"MO1",PFP!$J$8:$J$19),2) -> 0
A9: A1 | B9: INSS | E9: 0.2 | F9: =ROUND(E9*SUMIF(PFP!$B$8:$B$19,"MO1",PFP!$J$8:$J$19),2) -> 0
A10: A2 | B10: SESI | E10: 0.015 | F10: =ROUND(E10*SUMIF(PFP!$B$8:$B$19,"MO1",PFP!$J$8:$J$19),2) -> 0
A11: A3 | B11: SENAI | E11: 0.01 | F11: =ROUND(E11*SUMIF(PFP!$B$8:$B$19,"MO1",PFP!$J$8:$J$19),2) -> 0
A12: A4 | B12: INCRA | E12: 0.002 | F12: =ROUND(E12*SUMIF(PFP!$B$8:$B$19,"MO1",PFP!$J$8:$J$19),2) -> 0
A13: A5 | B13: SEBRAE | E13: 0.006 | F13: =ROUND(E13*SUMIF(PFP!$B$8:$B$19,"MO1",PFP!$J$8:$J$19),2) -> 0
A14: A6 | B14: Salário Educação | E14: 0.025 | F14: =ROUND(E14*SUMIF(PFP!$B$8:$B$19,"MO1",PFP!$J$8:$J$19),2) -> 0
A15: A7 | B15: Seguro Contra Acidentes de Trabalho | E15: 0.03 | F15: =ROUND(E15*SUMIF(PFP!$B$8:$B$19,"MO1",PFP!$J$8:$J$19),2) -> 0
A16: A8 | B16: FGTS | E16: 0.08 | F16: =ROUND(E16*SUMIF(PFP!$B$8:$B$19,"MO1",PFP!$J$8:$J$19),2) -> 0
A17: A9 | B17: Seconci | E17: 0.01 | F17: =ROUND(E17*SUMIF(PFP!$B$8:$B$19,"MO1",PFP!$J$8:$J$19),2) -> 0
A18: B | B18: ENCARGOS SOCIAIS QUE RECEBEM INCIDÊNCIA DE "A" | E18: =ROUND(SUM(E19:E25),4) -> 0.1727 | F18: =ROUND(E18*SUMIF(PFP!$B$8:$B$19,"MO1",PFP!$J$8:$J$19),2) -> 0
A19: B3 | B19: Auxílio Enfermidade | E19: 0.0067 | F19: =ROUND(E19*SUMIF(PFP!$B$8:$B$19,"MO1",PFP!$J$8:$J$19),2) -> 0
A20: B4 | B20: 13º Salário | E20: 0.0833 | F20: =ROUND(E20*SUMIF(PFP!$B$8:$B$19,"MO1",PFP!$J$8:$J$19),2) -> 0
A21: B5 | B21: Licença Paternidade | E21: 0.0006 | F21: =ROUND(E21*SUMIF(PFP!$B$8:$B$19,"MO1",PFP!$J$8:$J$19),2) -> 0
A22: B6 | B22: Faltas Justificadas | E22: 0.0056 | F22: =ROUND(E22*SUMIF(PFP!$B$8:$B$19,"MO1",PFP!$J$8:$J$19),2) -> 0
A23: B8 | B23: Auxílio Acidente de Trabalho | E23: 0.0008 | F23: =ROUND(E23*SUMIF(PFP!$B$8:$B$19,"MO1",PFP!$J$8:$J$19),2) -> 0
A24: B9 | B24: Férias Gozadas | E24: 0.0754 | F24: =ROUND(E24*SUMIF(PFP!$B$8:$B$19,"MO1",PFP!$J$8:$J$19),2) -> 0
A25: B10 | B25: Salário Maternidade | E25: 0.0003 | F25: =ROUND(E25*SUMIF(PFP!$B$8:$B$19,"MO1",PFP!$J$8:$J$19),2) -> 0
A26: C | B26: ENCARGOS SOCIAIS QUE NÃO RECEBEM INCIDÊNCIA DE "A" | E26: =ROUND(SUM(E27:E31),4) -> 0.1067 | F26: =ROUND(E26*SUMIF(PFP!$B$8:$B$19,"MO1",PFP!$J$8:$J$19),2) -> 0
A27: C1 | B27: Aviso Prévio Indenizado | E27: 0.044 | F27: =ROUND(E27*SUMIF(PFP!$B$8:$B$19,"MO1",PFP!$J$8:$J$19),2) -> 0
A28: C2 | B28: Aviso Prévio Trabalhado | E28: 0.001 | F28: =ROUND(E28*SUMIF(PFP!$B$8:$B$19,"MO1",PFP!$J$8:$J$19),2) -> 0
A29: C3 | B29: Férias Indenizadas | E29: 0.0297 | F29: =ROUND(E29*SUMIF(PFP!$B$8:$B$19,"MO1",PFP!$J$8:$J$19),2) -> 0
A30: C4 | B30: Depósito Rescisão Sem Justa Causa | E30: 0.0283 | F30: =ROUND(E30*SUMIF(PFP!$B$8:$B$19,"MO1",PFP!$J$8:$J$19),2) -> 0
A31: C5 | B31: Indenização Adicional | E31: 0.0037 | F31: =ROUND(E31*SUMIF(PFP!$B$8:$B$19,"MO1",PFP!$J$8:$J$19),2) -> 0
A32: D | B32: REINCIDÊNCIAS | E32: =ROUND(SUM(E33:E34),4) -> 0.0692 | F32: =ROUND(E32*SUMIF(PFP!$B$8:$B$19,"MO1",PFP!$J$8:$J$19),2) -> 0
A33: D1 | B33: Reincidência de "A" sobre "B" | E33: 0.0653 | F33: =ROUND(E33*SUMIF(PFP!$B$8:$B$19,"MO1",PFP!$J$8:$J$19),2) -> 0
A34: D2 | B34: Reincidência de "A" sobre Aviso Prévio Trabalhado e reincidência do FGTS sobre Aviso Prévio Indenizado | E34: 0.0039 | F34: =ROUND(E34*SUMIF(PFP!$B$8:$B$19,"MO1",PFP!$J$8:$J$19),2) -> 0
A35: K1a | B35: ENCARGOS SOCIAIS | E35: =ROUND(E8+E18+E26+E32,4) -> 0.7266 | F35: =ROUND(E35*SUMIF(PFP!$B$8:$B$19,"MO1",PFP!$J$8:$J$19),2) -> 0
A36: Ka | B36: TAXA DE RESSARCIMENTO DE DESPESAS E ENCARGOS SOBRE MO1 | E36: =ROUND((1+E35+PFP3_FatorKd!E13)*(1+PFP3_FatorKd!E12)*(1+PFP3_FatorKd!E8),4) -> 2.3566
A37: OBSERVAÇÃO: CELETISTAS E EQUIVALENTES
A38: 1 - DISCRIMINAR OS ENCARGOS SOCIAIS COM SEUS RESPECTIVOS PERCENTUAS TOTALIZANDO OS MESMOS.
A39: 2 - APLICAR O % TOTAL P/ CALCULAR OS E. SOCIAIS INCIDENTES NA MÃO-DE-OBRA CELETISTAS
A40: Ka - Taxa de Ressarcimento de Despesas e Encargos sobre a Mão de Obra CELETISTA (incide apenas no Insumo Codigo MO1)
A41: Ka = (1 + K1 + K2) x (1 + K3) x (1 + K4)

Sheet PFP2.2_FatorKb
A1: DETALHAMENTO DOS ENCARGOS SOCIAIS: Kb | F1: CODIGO:
F2: PFP-2.2
A3: NOME DA CONSULTORA:
A5: PROJETO: | C5: CONTRATANTE: | F5: =PFP2.1_FatorKa!F5 -> BASE:
A6: =PFP!A6 -> ELABORAÇÃO DE ESTUDO DE VIABILIDADE TÉCNICA, ECONÔMICA E AMBIENTAL, ESTUDOS BÁSICOS, PROJETO BÁSICO E PROJETO EXECUTIVO PARA CONSTRUÇÃO DA PONTE SOBRE O RIO SÃO DOMINGOS E INFRAESTRUTURA COMPLETA, NO MUNICÍPIO DE PARANÃ, NO ESTADO DE TOCANTINS | C6: CODEVASF (SEDE) | F6: =PFP2.1_FatorKa!F6 -> SINAPI/TO
A7: Cod | B7: DESCRIÇÃO | E7: % | F7: R$
A8: A | B8: ENCARGOS SOCIAIS BÁSICOS | E8: =ROUND(SUM(E9:E16),4) -> 0.2 | F8: =ROUND(E8*SUMIF(PFP!$B$8:$B$19,"MO2",PFP!$J$8:$J$19),2) -> 0
A9: A1 | B9: INSS | E9: 0.2 | F9: =ROUND(E9*SUMIF(PFP!$B$8:$B$19,"MO2",PFP!$J$8:$J$19),2) -> 0
A10: A2 | B10: SESI | E10: 0 | F10: =ROUND(E10*SUMIF(PFP!$B$8:$B$19,"MO2",PFP!$J$8:$J$19),2) -> 0
A11: A3 | B11: SENAI | E11: 0 | F11: =ROUND(E11*SUMIF(PFP!$B$8:$B$19,"MO2",PFP!$J$8:$J$19),2) -> 0
A12: A4 | B12: INCRA | E12: 0 | F12: =ROUND(E12*SUMIF(PFP!$B$8:$B$19,"MO2",PFP!$J$8:$J$19),2) -> 0
A13: A5 | B13: SEBRAE | E13: 0 | F13: =ROUND(E13*SUMIF(PFP!$B$8:$B$19,"MO2",PFP!$J$8:$J$19),2) -> 0
A14: A6 | B14: Salário Educação | E14: 0 | F14: =ROUND(E14*SUMIF(PFP!$B$8:$B$19,"MO2",PFP!$J$8:$J$19),2) -> 0
A15: A7 | B15: Seguro Contra Acidentes de Trabalho | E15: 0 | F15: =ROUND(E15*SUMIF(PFP!$B$8:$B$19,"MO2",PFP!$J$8:$J$19),2) -> 0
A16: A8 | B16: FGTS | E16: 0 | F16: =ROUND(E16*SUMIF(PFP!$B$8:$B$19,"MO2",PFP!$J$8:$J$19),2) -> 0
A17: B | B17: ENCARGOS SOCIAIS QUE RECEBEM INCIDÊNCIA DE "A" | E17: =ROUND(SUM(E18:E24),4) -> 0 | F17: =ROUND(E17*SUMIF(PFP!$B$8:$B$19,"MO2",PFP!$J$8:$J$19),2) -> 0
A18: B3 | B18: Auxílio Enfermidade | E18: 0 | F18: =ROUND(E18*SUMIF(PFP!$B$8:$B$19,"MO2",PFP!$J$8:$J$19),2) -> 0
A19: B4 | B19: 13º Salário | E19: 0 | F19: =ROUND(E19*SUMIF(PFP!$B$8:$B$19,"MO2",PFP!$J$8:$J$19),2) -> 0
A20: B5 | B20: Licença Paternidade | E20: 0 | F20: =ROUND(E20*SUMIF(PFP!$B$8:$B$19,"MO2",PFP!$J$8:$J$19),2) -> 0
A21: B6 | B21: Faltas Justificadas | E21: 0 | F21: =ROUND(E21*SUMIF(PFP!$B$8:$B$19,"MO2",PFP!$J$8:$J$19),2) -> 0
A22: B8 | B22: Auxílio Acidente de Trabalho | E22: 0 | F22: =ROUND(E22*SUMIF(PFP!$B$8:$B$19,"MO2",PFP!$J$8:$J$19),2) -> 0
A23: B9 | B23: Férias Gozadas | E23: 0 | F23: =ROUND(E23*SUMIF(PFP!$B$8:$B$19,"MO2",PFP!$J$8:$J$19),2) -> 0
A24: B10 | B24: Salário Maternidade | E24: 0 | F24: =ROUND(E24*SUMIF(PFP!$B$8:$B$19,"MO2",PFP!$J$8:$J$19),2) -> 0
A25: C | B25: ENCARGOS SOCIAIS QUE NÃO RECEBEM INCIDÊNCIA DE "A" | E25: =ROUND(SUM(E26:E30),4) -> 0 | F25: =ROUND(E25*SUMIF(PFP!$B$8:$B$19,"MO2",PFP!$J$8:$J$19),2) -> 0
A26: C1 | B26: Aviso Prévio Indenizado | E26: 0 | F26: =ROUND(E26*SUMIF(PFP!$B$8:$B$19,"MO2",PFP!$J$8:$J$19),2) -> 0
A27: C2 | B27: Aviso Prévio Trabalhado | E27: 0 | F27: =ROUND(E27*SUMIF(PFP!$B$8:$B$19,"MO2",PFP!$J$8:$J$19),2) -> 0
A28: C3 | B28: Férias Indenizadas | E28: 0 | F28: =ROUND(E28*SUMIF(PFP!$B$8:$B$19,"MO2",PFP!$J$8:$J$19),2) -> 0
A29: C4 | B29: Depósito Rescisão Sem Justa Causa | E29: 0 | F29: =ROUND(E29*SUMIF(PFP!$B$8:$B$19,"MO2",PFP!$J$8:$J$19),2) -> 0
A30: C5 | B30: Indenização Adicional | E30: 0 | F30: =ROUND(E30*SUMIF(PFP!$B$8:$B$19,"MO2",PFP!$J$8:$J$19),2) -> 0
A31: D | B31: REINCIDÊNCIAS | E31: =ROUND(SUM(E32:E33),4) -> 0 | F31: =ROUND(E31*SUMIF(PFP!$B$8:$B$19,"MO2",PFP!$J$8:$J$19),2) -> 0
A32: D1 | B32: Reincidência de "A" sobre "B" | E32: =ROUND(E8*E17,4) -> 0 | F32: =ROUND(E32*SUMIF(PFP!$B$8:$B$19,"MO2",PFP!$J$8:$J$19),2) -> 0
A33: D2 | B33: Reincidência de "A" sobre Aviso Prévio Trabalhado e reincidência do FGTS sobre Aviso Prévio Indenizado | E33: =ROUND((E27*E8)+(E26*E16),4) -> 0 | F33: =ROUND(E33*SUMIF(PFP!$B$8:$B$19,"MO2",PFP!$J$8:$J$19),2) -> 0
A34: K1b | B34: ENCARGOS SOCIAIS | E34: =ROUND(E8+E17+E25+E31,4) -> 0.2 | F34: =ROUND(E34*SUMIF(PFP!$B$8:$B$19,"MO2",PFP!$J$8:$J$19),2) -> 0
A35: Kb | B35: TAXA DE RESSARCIMENTO DE DESPESAS E ENCARGOS SOBRE MO2 | E35: =ROUND((1+E34+PFP3_FatorKd!E13)*(1+PFP3_FatorKd!E12)*(1+PFP3_FatorKd!E8),4) -> 1.6953
A36: OBSERVAÇÃO: AUTÔNOMOS E EQUIVALENTES
A37: 1 - DISCRIMINAR OS ENCARGOS SOCIAIS COM SEUS RESPECTIVOS PERCENTUAS TOTALIZANDO OS MESMOS.
A38: 2 - APLICAR O % TOTAL P/ CALCULAR OS E. SOCIAIS INCIDENTES NA MÃO-DE-OBRA AUTONÔMOS
A39: Kb - Taxa de Ressarcimento de Despesas e Encargos sobre a Mão de Obra AUTONÔMA (incide apenas no Insumo Codigo MO2)
A40: Kb = (1 + K1 + K2) x (1 + K3) x (1 + K4)

Sheet PFP2.3_FatorKc
A1: DETALHAMENTO DOS ENCARGOS SOCIAIS: Kc | F1: CODIGO:
F2: PFP-2.3
A3: NOME DA CONSULTORA:
A5: PROJETO: | C5: CONTRATANTE: | F5: =PFP2.2_FatorKb!F5 -> BASE:
A6: =PFP!A6 -> ELABORAÇÃO DE ESTUDO DE VIABILIDADE TÉCNICA, ECONÔMICA E AMBIENTAL, ESTUDOS BÁSICOS, PROJETO BÁSICO E PROJETO EXECUTIVO PARA CONSTRUÇÃO DA PONTE SOBRE O RIO SÃO DOMINGOS E INFRAESTRUTURA COMPLETA, NO MUNICÍPIO DE PARANÃ, NO ESTADO DE TOCANTINS | C6: CODEVASF (SEDE) | F6: =PFP2.2_FatorKb!F6 -> SINAPI/TO
A7: Cod | B7: DESCRIÇÃO | E7: % | F7: R$
A8: A | B8: ENCARGOS SOCIAIS BÁSICOS | E8: =SUM(E9:E16) -> 0 | F8: =ROUND(E8*SUMIF(PFP!$B$8:$B$19,"MO3",PFP!$J$8:$J$19),2) -> 0
A9: A1 | B9: INSS | E9: 0 | F9: =ROUND(E9*SUMIF(PFP!$B$8:$B$19,"MO3",PFP!$J$8:$J$19),2) -> 0
A10: A2 | B10: SESI | E10: 0 | F10: =ROUND(E10*SUMIF(PFP!$B$8:$B$19,"MO3",PFP!$J$8:$J$19),2) -> 0
A11: A3 | B11: SENAI | E11: 0 | F11: =ROUND(E11*SUMIF(PFP!$B$8:$B$19,"MO3",PFP!$J$8:$J$19),2) -> 0
A12: A4 | B12: INCRA | E12: 0 | F12: =ROUND(E12*SUMIF(PFP!$B$8:$B$19,"MO3",PFP!$J$8:$J$19),2) -> 0
A13: A5 | B13: SEBRAE | E13: 0 | F13: =ROUND(E13*SUMIF(PFP!$B$8:$B$19,"MO3",PFP!$J$8:$J$19),2) -> 0
A14: A6 | B14: Salário Educação | E14: 0 | F14: =ROUND(E14*SUMIF(PFP!$B$8:$B$19,"MO3",PFP!$J$8:$J$19),2) -> 0
A15: A7 | B15: Seguro Contra Acidentes de Trabalho | E15: 0 | F15: =ROUND(E15*SUMIF(PFP!$B$8:$B$19,"MO3",PFP!$J$8:$J$19),2) -> 0
A16: A8 | B16: FGTS | E16: 0 | F16: =ROUND(E16*SUMIF(PFP!$B$8:$B$19,"MO3",PFP!$J$8:$J$19),2) -> 0
A17: B | B17: ENCARGOS SOCIAIS QUE RECEBEM INCIDÊNCIA DE "A" | E17: =ROUND(SUM(E18:E24),4) -> 0 | F17: =ROUND(E17*SUMIF(PFP!$B$8:$B$19,"MO3",PFP!$J$8:$J$19),2) -> 0
A18: B3 | B18: Auxílio Enfermidade | E18: 0 | F18: =ROUND(E18*SUMIF(PFP!$B$8:$B$19,"MO3",PFP!$J$8:$J$19),2) -> 0
A19: B4 | B19: 13º Salário | E19: 0 | F19: =ROUND(E19*SUMIF(PFP!$B$8:$B$19,"MO3",PFP!$J$8:$J$19),2) -> 0
A20: B5 | B20: Licença Paternidade | E20: 0 | F20: =ROUND(E20*SUMIF(PFP!$B$8:$B$19,"MO3",PFP!$J$8:$J$19),2) -> 0
A21: B6 | B21: Faltas Justificadas | E21: 0 | F21: =ROUND(E21*SUMIF(PFP!$B$8:$B$19,"MO3",PFP!$J$8:$J$19),2) -> 0
A22: B8 | B22: Auxílio Acidente de Trabalho | E22: 0 | F22: =ROUND(E22*SUMIF(PFP!$B$8:$B$19,"MO3",PFP!$J$8:$J$19),2) -> 0
A23: B9 | B23: Férias Gozadas | E23: 0 | F23: =ROUND(E23*SUMIF(PFP!$B$8:$B$19,"MO3",PFP!$J$8:$J$19),2) -> 0
A24: B10 | B24: Salário Maternidade | E24: 0 | F24: =ROUND(E24*SUMIF(PFP!$B$8:$B$19,"MO3",PFP!$J$8:$J$19),2) -> 0
A25: C | B25: ENCARGOS SOCIAIS QUE NÃO RECEBEM INCIDÊNCIA DE "A" | E25: =ROUND(SUM(E26:E30),4) -> 0 | F25: =ROUND(E25*SUMIF(PFP!$B$8:$B$19,"MO3",PFP!$J$8:$J$19),2) -> 0
A26: C1 | B26: Aviso Prévio Indenizado | E26: 0 | F26: =ROUND(E26*SUMIF(PFP!$B$8:$B$19,"MO3",PFP!$J$8:$J$19),2) -> 0
A27: C2 | B27: Aviso Prévio Trabalhado | E27: 0 | F27: =ROUND(E27*SUMIF(PFP!$B$8:$B$19,"MO3",PFP!$J$8:$J$19),2) -> 0
A28: C3 | B28: Férias Indenizadas | E28: 0 | F28: =ROUND(E28*SUMIF(PFP!$B$8:$B$19,"MO3",PFP!$J$8:$J$19),2) -> 0
A29: C4 | B29: Depósito Rescisão Sem Justa Causa | E29: 0 | F29: =ROUND(E29*SUMIF(PFP!$B$8:$B$19,"MO3",PFP!$J$8:$J$19),2) -> 0
A30: C5 | B30: Indenização Adicional | E30: 0 | F30: =ROUND(E30*SUMIF(PFP!$B$8:$B$19,"MO3",PFP!$J$8:$J$19),2) -> 0
A31: D | B31: REINCIDÊNCIAS | E31: =ROUND(SUM(E32:E33),4) -> 0 | F31: =ROUND(E31*SUMIF(PFP!$B$8:$B$19,"MO3",PFP!$J$8:$J$19),2) -> 0
A32: D1 | B32: Reincidência de "A" sobre "B" | E32: =ROUND(E8*E17,4) -> 0 | F32: =ROUND(E32*SUMIF(PFP!$B$8:$B$19,"MO3",PFP!$J$8:$J$19),2) -> 0
A33: D2 | B33: Reincidência de "A" sobre Aviso Prévio Trabalhado e reincidência do FGTS sobre Aviso Prévio Indenizado | E33: =ROUND(E8*E27,4)+ROUND(E26*E11,4) -> 0 | F33: =ROUND(E33*SUMIF(PFP!$B$8:$B$19,"MO3",PFP!$J$8:$J$19),2) -> 0
A34: K1c | B34: ENCARGOS SOCIAIS | E34: =ROUND(E8+E17+E25+E31,4) -> 0 | F34: =ROUND(E34*SUMIF(PFP!$B$8:$B$19,"MO3",PFP!$J$8:$J$19),2) -> 0
A35: Kc | B35: TAXA DE RESSARCIMENTO DE DESPESAS E ENCARGOS SOBRE MO3 | E35: =ROUND((1+E34+PFP3_FatorKd!E13)*(1+PFP3_FatorKd!E12)*(1+PFP3_FatorKd!E8),4) -> 1.4441
A36: OBSERVAÇÃO: SOCIETÁRIOS E EQUIVALENTES
A37: 1 - DISCRIMINAR OS ENCARGOS SOCIAIS COM SEUS RESPECTIVOS PERCENTUAS TOTALIZANDO OS MESMOS.
A38: 2 - APLICAR O % TOTAL P/ CALCULAR OS E. SOCIAIS INCIDENTES NA MÃO-DE-OBRA DE SOCIETÁRIOS
A39: Kc - Taxa de Ressarcimento de Despesas e Encargos sobre a Mão de Obra SOCIETÁRIA (incide apenas no Insumo Codigo MO3)
A40: Kc = (1 + K1 + K2) x (1 + K3) x (1 + K4)

Sheet PFP3_FatorKd
A1: DESPESAS FISCAIS E CUSTOS DIVERSOS: Kc | F1: CODIGO:
F2: PFP-3
A3: NOME DA CONSULTORA:
A5: PROJETO: | C5: CONTRATANTE: | F5: =PFP2.3_FatorKc!F5 -> BASE:
A6: =PFP!A6 -> ELABORAÇÃO DE ESTUDO DE VIABILIDADE TÉCNICA, ECONÔMICA E AMBIENTAL, ESTUDOS BÁSICOS, PROJETO BÁSICO E PROJETO EXECUTIVO PARA CONSTRUÇÃO DA PONTE SOBRE O RIO SÃO DOMINGOS E INFRAESTRUTURA COMPLETA, NO MUNICÍPIO DE PARANÃ, NO ESTADO DE TOCANTINS | C6: CODEVASF (SEDE) | F6: =PFP2.3_FatorKc!F6 -> SINAPI/TO
A7: Cod | B7: DESCRIÇÃO1 | D7: % preço2 | E7: % custo4 | F7: R$
A8: K4 | B8: TRIBUTOS | D8: =ROUND(D9+D10+D11,4) -> 0.1425 | E8: =ROUND(E9+E10+E11,4) -> 0.1416
A9: K4.1 | B9: ISS | D9: 0.05 | E9: 0.0571
A10: K4.2 | B10: PIS3 - aliquota efetiva aplicavel percentual-desconto | D10: 0.0165 | E10: 0.0151
A11: K4.3 | B11: COFINS3 - aliquota efetiva aplicavel percentual-desconto | D11: 0.076 | E11: 0.0694
A12: K3 | B12: REMUNERAÇÃO DA EMPRESA (LUCRO) | E12: 0.1
A13: K2 | B13: CUSTOS DA ADMINISTRAÇÃO CENTRAL | E13: =ROUND(SUM(E14:E16),4) -> 0.15 | F13: =ROUND(E13*SUMIF(PFP!$B$8:$B$19,"MO*",PFP!$J$8:$J$19),2) -> 0
A14: K2.1 | B14: Custos da administração central da empresa (diretoria, pessoal técnico de apoio e pessoal administrativo não diretamente vinculado à prestação dos serviços) | E14: 0.1 | F14: =ROUND(E14*SUMIF(PFP!$B$8:$B$19,"MO*",PFP!$J$8:$J$19),2) -> 0
A15: K2.2 | B15: Outras despesas que afetam o custo de produção como treinamento, biblioteca, programa de qualidade, programa de benefícios, auditoria interna e externa | E15: 0.03 | F15: =ROUND(E15*SUMIF(PFP!$B$8:$B$19,"MO*",PFP!$J$8:$J$19),2) -> 0
A16: K2.3 | B16: Despesas fixas e variaveis com patrimônio, aluguéis, comunicação, manutenção e transporte não diretamente relacionados com o custo direto dos serviços | E16: 0.02 | F16: =ROUND(E16*SUMIF(PFP!$B$8:$B$19,"MO*",PFP!$J$8:$J$19),2) -> 0
A17: Kd | B17: TAXA RESSARCIMENTO DE DESPESAS SOBRE CUSTOS DIVERSOS | E17: =ROUND((1+E12)*(1+E8),4) -> 1.2558
A18: NOME DO INFORMANTE: | E18: QUALIFICAÇÃO:
A20: ASSINATURA: | E20: DATA:
A22: Observação:
A23: 1 - RELACIONAR OS CUSTOS DE ADMINISTRAÇÃO COM RESPECTIVOS PERCENTUAIS INCIDENTES NA MÃO -DE-OBRA
A24: 1 - DISCRIMINAR OS TRIBUTOS QUE INCIDEM SOBRE OS CUSTOS DA PRESTAÇÃO DOS SERVIÇOS
A25: 2 - K4 = INDICAR % DE CADA TRIBUTO E A SOMA DOS MESMOS (ex: ISS 5% + PIS 1,65% + COFINS 7,60% = 14,25%)
A26: 3 - PIS e COFINS, Regime de Incidencia Acumulativa (0,65% e 3,00% - sem percentual de desconto) ou em Regime de Incidencia Não Acumulativa (1,65% e 7,60% - aplicável percentual de desconto) de acordo com a forma de apuração do lucro no IRPJ. APRESENTAR COMPROVANTES de aproveitamento de créditos tributários dos últimos 12 meses em caso de aplicação de "percentual de desconto".
A27: 4 - AS DESPESAS FISCAIS (K4) INCIDEM SOBRE O TOTAL DA FATURA E NÃO SOBRE OS CUSTOS INCORRIDOS,
A28: DEVENDO SER CALCULADO O K4' APLICANDO-SE A SEGUINTE FÓRMULA:
A29: K4' = { [ 1 / ( 1 - K4) ] - 1 } x 100
A30: =CONCATENATE(" K4' = { [ 1 / ( 1 - ",D8," ) ] - 1 } x 100") -> K4' = { [ 1 / ( 1 - 0,1425 ) ] - 1 } x 100
A31: Kc - Taxa de Ressarcimento de Despesas sobre Custos Diversos (incide sobre os Insumos Codigo DP e EM)
A32: Kc = (1 + K3) x (1 + K4)
A33: K2 - Incide sobre o Custo Total (CT) da Mão de Obra (MO* = MO1 + MO2)
A34: K3 - Incide sobre o Custo Total (CT) Mão de Obra com encargos (MO1 x Ka ou MO2 x Kb), demais Custos (DP e EM), e Custos da Administração Central (K2)
A35: K4 - Incide sobre o Custo Total (CT) Mão de Obra com encargos (MO1 x Ka ou MO2 x Kb), demais Custos (DP e EM), e Custos da Administração Central (K2) e Lucro (K3)

Sheet CRO1_Ins-Pro
A1: INSUMOS POR ETAPA/PRODUTO | K1: CÓDIGO:
K2: CRO-1
A3: Cod. | B3: Categoria / Insumo | C3: Uni | D3: Qde | E3: CUD | F3: PU | G3: FatorK | H3: E1. EB | I3: E2. EVTEA | J3: E3. PB | K3: E4. PE
G4: Meses
A5: =PFP!B8 -> P8061 | B5: =PFP!D8 -> Engenheiro coordenador (P8061) | C5: mês | D5: =SUM(H5:K5) -> 0.8 | E5: =PFP!G8 -> 17126.55 | F5: =PFP!H8 -> 24732.45 | G5: =PFP!I8 -> 1.4441 | H5: ='CRO2_Ins-Mes'!E5 -> 0.2 | I5: ='CRO2_Ins-Mes'!E13 -> 0.2 | J5: ='CRO2_Ins-Mes'!E21 -> 0.2 | K5: ='CRO2_Ins-Mes'!E29 -> 0.2
A6: =PFP!B9 -> P8066 | B6: =PFP!D9 -> Engenheiro pleno (P8066) | C6: mês | D6: 5 | E6: =PFP!G9 -> 11669.34 | F6: =PFP!H9 -> 27499.97 | G6: =PFP!I9 -> 2.3566 | H6: ='CRO2_Ins-Mes'!E6 -> 0 | I6: ='CRO2_Ins-Mes'!E14 -> 2 | J6: ='CRO2_Ins-Mes'!E22 -> 2 | K6: ='CRO2_Ins-Mes'!E30 -> 1
A7: =PFP!B10 -> P8065 | B7: =PFP!D10 -> Engenheiro júnior (P8065) | C7: mês | D7: 0.8 | E7: =PFP!G10 -> 11220 | F7: =PFP!H10 -> 26441.05 | G7: =PFP!I10 -> 2.3566 | H7: ='CRO2_Ins-Mes'!E7 -> 0 | I7: ='CRO2_Ins-Mes'!E15 -> 0 | J7: ='CRO2_Ins-Mes'!E23 -> 0.8 | K7: ='CRO2_Ins-Mes'!E31 -> 0
A8: =PFP!B11 -> 40807 | B8: =PFP!D11 -> Desenhista (40807) | C8: mês | D8: 5 | E8: =PFP!G11 -> 2660.12 | F8: =PFP!H11 -> 6268.84 | G8: =PFP!I11 -> 2.3566 | H8: ='CRO2_Ins-Mes'!E8 -> 1 | I8: ='CRO2_Ins-Mes'!E16 -> 1 | J8: ='CRO2_Ins-Mes'!E24 -> 2 | K8: ='CRO2_Ins-Mes'!E32 -> 1
A9: =PFP!B12 -> P8147 | B9: Técnico de projetos/obra (P8147) | C9: mês | D9: 4 | E9: =PFP!G12 -> 3118.31 | F9: =PFP!H12 -> 7348.61 | G9: =PFP!I12 -> 2.3566 | H9: ='CRO2_Ins-Mes'!E9 -> 1 | I9: ='CRO2_Ins-Mes'!E17 -> 1 | J9: ='CRO2_Ins-Mes'!E25 -> 2 | K9: ='CRO2_Ins-Mes'!E33 -> 0
A10: - | B10: =PFP!D13 -> Encargos Comp. e Adicionais | C10: mês | D10: =SUM(D5:D9) -> 15.6 | E10: =PFP!G13 -> 1053.01141 | F10: =PFP!H13 -> 1322.37 | G10: =PFP!I13 -> 1.2558 | H10: =SUM(H5:H9) -> 2.2 | I10: =SUM(I5:I9) -> 4.2 | J10: =SUM(J5:J9) -> 7 | K10: =SUM(K5:K9) -> 2.2
A11: - | B11: =PFP!D14 -> Auxilio Transporte Técnicos | C11: mês | D11: =SUM(H11:K11) -> 0 | E11: =PFP!G14 -> Já incluso* | F11: =PFP!H14 -> 0 | G11: =PFP!I14 -> 0 | H11: 0 | I11: 0 | J11: 0 | K11: 0
A12: - | B12: =PFP!D15 -> Auxilio Transporte Secretária | C12: mês | D12: 0 | E12: =PFP!G15 -> Já Incluso* | F12: =PFP!H15 -> 0 | G12: =PFP!I15 -> 0 | H12: 0 | I12: 0 | J12: 0 | K12: 0
A13: - | B13: =PFP!D16 -> Relatório Parcial | C13: un | D13: 0 | E13: =PFP!G16 -> 33.35 | F13: =PFP!H16 -> 41.88 | G13: =PFP!I16 -> 1.2558 | H13: ='CRO2_Ins-Mes'!E10 -> 0 | I13: ='CRO2_Ins-Mes'!E18 -> 0 | J13: ='CRO2_Ins-Mes'!E26 -> 0 | K13: ='CRO2_Ins-Mes'!E34 -> 0
A14: - | B14: =PFP!D17 -> Relatório Final | C14: un | D14: 4 | E14: =PFP!G17 -> 1478.8 | F14: =PFP!H17 -> 1857.08 | G14: =PFP!I17 -> 1.2558 | H14: ='CRO2_Ins-Mes'!E11 -> 1 | I14: ='CRO2_Ins-Mes'!E19 -> 1 | J14: ='CRO2_Ins-Mes'!E27 -> 1 | K14: ='CRO2_Ins-Mes'!E35 -> 1
A15: - | B15: =PFP!D18 -> Total Serviços Cartográficos | C15: un | D15: 1 | E15: =PFP!G18 -> - | F15: =PFP!H18 -> 23373.07 | G15: =PFP!I18 -> - | H15: 1
A16: - | B16: =PFP!D19 -> Total Serviços Geotécnicos | C16: un | D16: 1 | E16: =PFP!G19 -> - | F16: =PFP!H19 -> 128528.11 | G16: =PFP!I19 -> - | H16: 1
A17: TOTAL | B17: VALOR TOTAL POR PRODUTO | C17: R$ | D17: =SUM(H17:K17) -> 419135.762 | H17: =H5*$F$5+H6*$F$6+H7*$F$7+H8*$F$8+H9*$F$9+H10*$F$10+H11*$F$11+H12*$F$12+H13*$F$13+H14*$F$14+H15*$F$15+H16*$F$16 -> 175231.414 | I17: =I5*$F$5+I6*$F$6+I7*$F$7+I8*$F$8+I9*$F$9+I10*$F$10+I11*$F$11+I12*$F$12+I13*$F$13+I14*$F$14+I15*$F$15+I16*$F$16 -> 80974.914 | J17: =J5*$F$5+J6*$F$6+J7*$F$7+J8*$F$8+J9*$F$9+J10*$F$10+J11*$F$11+J12*$F$12+J13*$F$13+J14*$F$14+J15*$F$15+J16*$F$16 -> 119447.84 | K17: =K5*$F$5+K6*$F$6+K7*$F$7+K8*$F$8+K9*$F$9+K10*$F$10+K11*$F$11+K12*$F$12+K13*$F$13+K14*$F$14+K15*$F$15+K16*$F$16 -> 43481.594
C18: % | D18: =SUM(H18:K18) -> 1 | H18: =ROUND(H17/$D$17,5) -> 0.41808 | I18: 0.19319 | J18: 0.28499 | K18: 0.10374
A81: OBSERVAÇÃO:
A83: T - Profissionais de nível médio técnico nas diversas áreas de atuação
A84: A - Profissionais de nível médio de apoio técnico-administrativo

Sheet CRO2_Ins-Mes
A1: CRONOGRAMA SIMPLIFICADO
A3: Cod1 | B3: Cod2 | C3: Produtos | D3: Uni | E3: Qde | F3: 1 | G3: 2 | H3: 3 | I3: 4 | J3: 5 | K3: 6 | L3: 7 | M3: 8
A4: Cod1 | B4: Cod2 | C4: Insumos | D4: Uni | E4: Qde | F4: 1 | G4: 2 | H4: 3 | I4: 4 | J4: 5 | K4: 6 | L4: 7 | M4: 8
A5: 1 | B5: 1.1 | C5: =PFP!D8 -> Engenheiro coordenador (P8061) | D5: =PFP!E8 -> mês | E5: =SUM(F5:M5) -> 0.2 | F5: 0.1 | G5: 0.1
A6: 1 | B6: 1.2 | C6: =PFP!D9 -> Engenheiro pleno (P8066) | D6: =PFP!E9 -> mês | E6: =SUM(F6:M6) -> 0
A7: 1 | B7: 1.3 | C7: =PFP!D10 -> Engenheiro júnior (P8065) | D7: =PFP!E10 -> mês | E7: 0
A8: 1 | B8: 1.4 | C8: =PFP!D11 -> Desenhista (40807) | D8: =PFP!E11 -> mês | E8: 1 | F8: 0.5 | G8: 0.5
A9: 1 | B9: 1.5 | C9: =PFP!D12 -> Técnico de projetos/obra (P8147) | D9: mês | E9: 1 | F9: 0.5 | G9: 0.5
A10: 1 | B10: 1.6 | C10: =PFP!D16 -> Relatório Parcial | D10: =PFP!E16 -> un | E10: 0
A11: 1 | B11: 1.7 | C11: =PFP!D17 -> Relatório Final | D11: =PFP!E17 -> un | E11: 1 | G11: 1
A12: 1 | B12: 1 | C12: Estudos Básicos (EB) | E12: 3.2 | F12: =SUM(F5:F11) -> 1.1 | G12: 2.1 | H12: 0 | I12: 0 | J12: 0 | K12: 0 | L12: 0 | M12: 0
A13: 2 | B13: 2.1 | C13: =PFP!D8 -> Engenheiro coordenador (P8061) | D13: =PFP!E8 -> mês | E13: =SUM(F13:M13) -> 0.2 | F13: 0.1 | G13: 0.1
A14: 2 | B14: 2.2 | C14: =PFP!D9 -> Engenheiro pleno (P8066) | D14: =PFP!E9 -> mês | E14: =SUM(F14:M14) -> 2 | F14: 1 | G14: 1
A15: 2 | B15: 2.3 | C15: =PFP!D10 -> Engenheiro júnior (P8065) | D15: =PFP!E10 -> mês | E15: 0
A16: 2 | B16: 2.4 | C16: =PFP!D11 -> Desenhista (40807) | D16: =PFP!E11 -> mês | E16: 1 | F16: 0.5 | G16: 0.5
A17: 2 | B17: 2.5 | C17: =PFP!D12 -> Técnico de projetos/obra (P8147) | D17: mês | E17: 1 | F17: 0.5 | G17: 0.5
A18: 2 | B18: 2.6 | C18: =PFP!D16 -> Relatório Parcial | D18: un | E18: 0
A19: 2 | B19: 2.7 | C19: =PFP!D17 -> Relatório Final | D19: un | E19: 1 | G19: 1
A20: 2 | B20: 2 | C20: Estudo de Viabilidade Técnica, Econômica e Ambiental (EVTEA) | E20: 5.2 | F20: =SUM(F13:F19) -> 2.1 | G20: 3.1 | H20: 0 | I20: 0 | J20: 0 | K20: 0 | L20: 0 | M20: 0
A21: 3 | B21: 3.1 | C21: =PFP!D8 -> Engenheiro coordenador (P8061) | D21: =PFP!E8 -> mês | E21: =SUM(F21:M21) -> 0.2 | H21: 0.1 | I21: 0.1
A22: 3 | B22: 3.2 | C22: =PFP!D9 -> Engenheiro pleno (P8066) | D22: =PFP!E9 -> mês | E22: 2 | H22: 1 | I22: 1
A23: 3 | B23: 3.3 | C23: =PFP!D10 -> Engenheiro júnior (P8065) | D23: =PFP!E10 -> mês | E23: 0.8 | H23: 0.4 | I23: 0.4
A24: 3 | B24: 3.4 | C24: =PFP!D11 -> Desenhista (40807) | D24: =PFP!E11 -> mês | E24: 2 | H24: 1 | I24: 1
A25: 3 | B25: 3.5 | C25: =PFP!D12 -> Técnico de projetos/obra (P8147) | D25: mês | E25: 2 | H25: 1 | I25: 1
A26: 3 | B26: 3.6 | C26: =PFP!D16 -> Relatório Parcial | D26: =PFP!E16 -> un | E26: 0
A27: 3 | B27: 3.7 | C27: =PFP!D17 -> Relatório Final | D27: =PFP!E17 -> un | E27: 1 | I27: 1
A28: 3 | B28: 3 | C28: Projeto Básico (PB) | E28: 8 | F28: =SUM(F21:F27) -> 0 | G28: 0 | H28: 3.5 | I28: 4.5 | J28: 0 | K28: 0 | L28: 0 | M28: 0
A29: 4 | B29: 4.1 | C29: Engenheiro coordenador (P8061) | D29: mês | E29: 0.2 | J29: 0.2
A30: 4 | B30: 4.2 | C30: Engenheiro pleno (P8066) | D30: mês | E30: 1 | J30: 1
A31: 4 | B31: 4.3 | C31: Engenheiro júnior (P8065) | D31: mês | E31: 0
A32: 4 | B32: 4.4 | C32: Desenhista (40807) | D32: mês | E32: 1 | J32: 1
A33: 4 | B33: 4.5 | C33: Técnico de projetos/obra | D33: mês | E33: 0
A34: 4 | B34: 4.6 | C34: Relatório Parcial | D34: un | E34: 0
A35: 4 | B35: 4.7 | C35: Relatório Final | D35: un | E35: 1 | J35: 1
A36: 4 | B36: 4 | C36: Projeto Executivo (PE) | E36: 3.2 | F36: =SUM(F29:F35) -> 0 | G36: 0 | H36: 0 | I36: 0 | J36: 3.2 | K36: 0 | L36: 0 | M36: 0
A37: Total | C37: Balanço de Insumos | F37: =F36+F28+F20+F12 -> 3.2 | G37: 5.2 | H37: 3.5 | I37: 4.5 | J37: 3.2 | K37: 0 | L37: 0 | M37: 0

Sheet CPU VEICULO_PickUp
A2: Composição de Preços de Locação de Veículos
C3: Data de atualização: | D3: 2023-04-27 | F3: CV | G3: Média | H3: Mediana | L3: CV | M3: Média | N3: Mediana | W3: CV | X3: Média | Y3: Mediana
A4: CODEVASF | F4: =_xlfn.STDEV.S(F7:I7)/AVERAGE(F7:I7) -> 0.1058577365 | G4: =AVERAGE(F7:I7) -> 181000.25 | H4: =MEDIAN(F7:I7) -> 185107.5 | L4: =_xlfn.STDEV.S(M6:T6)/AVERAGE(M6:T6) -> 0.1487498525 | M4: =AVERAGE(M6:T6) -> 35.1725 | N4: =MEDIAN(M6:T6) -> 35.69 | W4: =_xlfn.STDEV.S(X6:AD6)/AVERAGE(X6:AD6) -> 0.08396956355 | X4: =AVERAGE(X6:AE6) -> 467.840625 | Y4: =MEDIAN(X6:AE6) -> 454.015
A5: OBS: Preço sem BDI e sem motorista BDI= | F5: Preço FIPE - fevereiro/2023 | K5: PRODUTO | L5: MENOR | M5: COT. 1 | N5: COT. 2 | O5: COT. 3 | P5: COT. 4 | Q5: COT. 5 | R5: COT. 6 | S5: COT. 7 | T5: COT. 8 | V5: PRODUTO | W5: MENOR | X5: COT. 1 | Y5: COT. 2 | Z5: COT. 3 | AA5: COT. 4 | AB5: COT. 5 | AC5: COT. 6 | AD5: COT. 7 | AE5: COT. 8
A6: Veículo tipo pick-up, cabine dupla - 2.0 16V 4x4 diesel Aut. | F6: Toro Endurance 2.0 16V 4x4 Diesel Aut. | G6: Toro Freedom 2.0 16V 4x4 TB Diesel Aut. | H6: Toro Volcano 2.0 16V 4x4 TB Diesel Aut. | I6: Toro Ranch 2.0 16V 4x4 TB Diesel Aut. | K6: LUBRIFICANTE 5W30 | L6: =SMALL(M4:N4,1) -> 35.1725 | M6: 29.64 | N6: 27.9 | O6: 38 | P6: 39.98 | Q6: 39.85 | R6: 33.38 | S6: 31.35 | T6: 41.28 | V6: Pneu 225/65 R17 | W6: =SMALL(X4:Y4,1) -> 454.015 | X6: 470 | Y6: 429.73 | Z6: 405.9 | AA6: 449.32 | AB6: 458.71 | AC6: 523.9 | AD6: =1718.94/4 -> 429.735 | AE6: 575.43
C7: Custo Mensal (R$): | D7: =D48 -> 7159.58281 | F7: 154231 | G7: 186943 | H7: 199555 | I7: 183272
C8: Custo Diária (R$): | D8: =D7/22 -> 325.4355823
C9: Custo Horário (R$): | D9: =D7/176 -> 40.67944779
A10: A | C10: Depreciação mensal do equipamento
A11: A1 | C11: Preço de Aquisição | D11: =SMALL(G4:H4,1) -> 181000.25
A12: A2 | C12: Tempo previsto de vida útil (meses) | D12: 36
A13: A3 | C13: Previsão de recup. Na venda do bem usado | D13: 0.4
A14: A4 | C14: Custo mensal [A1-(A3xA1)]/A2 | D14: =(D11-(D13*D11))/D12 -> 3016.670833
A15: B | C15: Juros pelo Capital empregado
A16: B1 | C16: Taxa mensal de Juros * | D16: =POWER(1+D54,1/12)-1 -> 0.01079391108
A17: B2 | C17: Juros s/depreciação/aluguel (B1xA4) | D17: =D16*D14 -> 32.56167674
A18: C | C18: Conservação e manutenção ** | D18: 0.75
A19: C1 | C19: Taxa de gastos s/a deprec. Inc. seguros (%) | D19: =D18 -> 0.75
A20: C2 | C20: Incidência mensal (C1xA4) | D20: =D19*D14 -> 2262.503125
A21: D | C21: Combustível
A22: D1 | C22: Média mensal de quilômetro por veículo | D22: =130*22 -> 2860
A23: D2 | C23: Preço do litro de combustível | D23: =G60 -> 5.79
A24: D3 | C24: Quilômetros rodados com um litro combustivel | D24: 10
A25: D4 | C25: Combustivel (D1/D3)*D2 | D25: =(D22/D24)*D23 -> 1655.94
A26: E | C26: Lubrificantes
A27: E1 | C27: Quilometragem do Contrato (D1*12) | D27: =D22*36 -> 102960
A28: E2 | C28: Franquia por troca de óleo (km) | D28: 10000
A29: E3 | C29: Preço do litro de óleo | D29: =L6 -> 35.1725
A30: E4 | C30: Quantidade de litros de óleo por troca | D30: 5
A31: E5 | C31: Quantidade de dias do Contrato | D31: =365*3 -> 1095
A32: E6 | C32: Lubrificantes E = (E1*E3*E4*30)/E2*E5 | D32: =(D27*D29*D30*30)/(D28*D31) -> 49.60767945
A33: F | C33: Pneus
A34: F1 | C34: Quilometragem do Contrato | D34: =D27 -> 102960
A35: F2 | C35: Vida do Pneu em quilômetros | D35: 45000
A36: F3 | C36: Quantidade de pneus | D36: 5
A37: F4 | C37: Preço do Pneu | D37: =W6 -> 454.015
A38: F5 | C38: Quantidade de dias do contrato | D38: =D31 -> 1095
A39: F6 | C39: Pneus = (F1*F3*F4*30)/(F2*F5) | D39: =(D34*D36*D37*30)/(D35*D38) -> 142.2994959
A40: G | C40: Motorista
A41: G1 | C41: Salário com encargos sociais | D41: 4185.11
A42: H | C42: Custo Mensal
C43: Sem Motorista (A4+B2+C2+D4+E6+F6) | D43: =D14+D17+D20+D25+D32+D39 -> 7159.58281
C44: Com Motorista (A4+B2+C2+D4+E6+F6+G1) | D44: =D14+D17+D20+D25+D32+D39+D41 -> 11344.69281
A45: I | C45: Custo Direto p/ km Rodado
C46: Sem Motorista | D46: =D43/D22 -> 2.503350633
C47: Com Motorista | D47: =D44/D22 -> 3.966675808
A48: J | C48: Preço cobrado sem BDI | D48: =D43*(1+D5) -> 7159.58281
A49: J1 | C49: Sem Motorista | D49: =D48 -> 7159.58281
A50: J2 | C50: Com Motorista | D50: =D44 -> 11344.69281 | J50: https://www.google.com/search?q=lubrificante+5w30&sxsrf=AJOqlzUM514L6uswJHb1jIGpGgXchTtV5A:1677092590843&source=lnms&tbm=shop&sa=X&sqi=2&ved=2ahUKEwj_vYfh6Kn9AhVMBrkGHRT6Bv4Q_AUoAXoECAEQAw&biw=1600&bih=757&dpr=1 | U50: https://www.google.com/search?q=pneu+225%2F65+R17&sa=X&biw=1600&bih=757&tbm=shop&sxsrf=AJOqlzWsb-d4PS1_OUOEhKmRc2RbtSg3RQ%3A1677092596279&ei=9Gb2Y9K5ENTa5OUPvLykGA&ved=0ahUKEwjSg9Pj6Kn9AhVULbkGHTweCQMQ4dUDCAg&uact=5&oq=pneu+225%2F65+R17&gs_lcp=Cgtwcm9kdWN0cy1jYxADMgsIABCABBCxAxCDATIFCAAQgAQyBwgAEIAEEAoyBwgAEIAEEAoyBwgAEIAEEAoyBwgAEIAEEAoyBwgAEIAEEAoyBQgAEIAEMgcIABCABBAKMgcIABCABBAKOgQIIxAnOgQIABBDSgQIQRgAUABYoTJgqUBoAHAAeACAAdIFiAGUKZIBDTAuMi42LjIuMi4yLjGYAQCgAQHAAQE&sclient=products-cc
C52: OBSERVAÇÕES:
A53: * | C53: Calculado com base na taxa SELIC ABRIL/2023 - 13,75 % a.a
C54: Taxa de Juros Selic — Português (Brasil) (www.gov.br) | D54: 0.1375
A55: ** | C55: Conservação e manutenção - é calculado com o uso de um coeficiente multiplicador "k", conforme tabela abaixo, sobre a
C56: depreciação mensal do equipamento (Item A da planilha de composição de preços). Os valores de K são fornecidos por
C57: fabricantes.
C58: Metodologia conforme a bibliografia "Como Preparar Orçamentos de Obras", 3 edição, Aldo Dórea Mattos, 2019.
C59: Preço calculado sem BDI
F60: PREÇO DO DIESEL | G60: 5.79
F84: https://precos.petrobras.com.br/sele%C3%A7%C3%A3o-de-estados-diesel

Sheet COT. VANT (hidden)
A2: COTAÇÃO ORÇAMENTÁRIA DE LEVANTAMENTO PLANIALTIMÉTRICO POR MEIO DE VANT PARA ÁREA NA CIDADE DE PINDARÉ-MIRIM-MA
A3: MÊS/ANO DE REFERÊNCIA | B3: ÁREA DO PROJETO [ha] | C3: EMPRESA | D3: LOCALIDADE | E3: WEBSITE | F3: CONTATO | G3: AVALIAÇÃO TÉCNICA DA PROPOSTA | H3: PREÇO | I3: PREÇO UNITÁRIO | J3: RELAÇÃO CUSTO-BENEFÍCIO
A4: 2022-09-01 | B4: 50 | C4: DRONES SOLUTION | D4: SALVADOR-BA | E4: http://www.dronessolution.com.br/ | F4: contato@dronessolution.com.br | G4: SATISFATÓRIA | H4: 9800 | I4: =(H4/B4) -> 196 | J4: A
A5: 2022-09-01 | B5: 50 | C5: ERG | D5: BELO HORIZONTE-MG | E5: http://www.ergbh.com.br/ | F5: comercial@ergbh.com.br | G5: SATISFATÓRIA | H5: 13240.5 | I5: =(H5/B5) -> 264.81 | J5: B
A6: 2022-09-01 | B6: 50 | C6: CEPEMAR | D6: VITÓRIA-ES | E6: http://www.cepemar.com.br/ | F6: comercial@cepemar.com.br | G6: SATISFATÓRIA | H6: 63000 | I6: 1260 | J6: C
A8: Observações | B8: 1. Na cotação acima já estão iclusos: Planejamento Aerotogramétrico, Voo Aerotoforamétrico, Apoio de Campo, Aerotriangulação, Restituição, MDT, MDS, Ortofotos, Edição/Revisão e Entrega Final. | G8: CV com todos valores: | H8: =STDEVA(H4:H6)/AVERAGE(H4:H6) -> 1.038054932
B9: 2. INCONCLUSIVA: não apresentou o orçamento de forma detalhada. | G9: CV tirando o maior valor: | H9: =STDEVA(H4:H5)/AVERAGE(H4:H5) -> 0.2111760492
B10: 3. SATISFATÓRIA: apresentou, no mínimo, os requisitos básicos de um orçamento. | G10: Média tirando o maior valor: | H10: =AVERAGE(H4:H5) -> 11520.25 | I10: Valor para a área de 65ha
B11: 4-Para o valor do serviço de Vant, considerou-se a média tirando o maior valor das cotações recebidas, pois o CV (coeficiente de variação) está muito elevado com as 3 cotaçoes.
B12: 5-As cotações recebidas foram utilizadas para o serviço de levantamento do Ramal do Manga no Amapá, referente a um trecho de 6,5km de rodovia, com área total estimadade de 65ha.
B13: Dessa forma, para a cotação representativa deste serviço, realizou-se a parametrização proporcional a área de estudo do serviço a ser realizado.
B15: Portanto:
C16: =I10 -> Valor para a área de 65ha | D16: =H10 -> 11520.25
C17: Valor unitário para a área de 1ha | D17: =D16/65 -> 177.2346154

Sheet Planilha de Medição
B1: PLANILHA DE MEDIÇÃO
B5: # | D5: DESCRIÇÃO | E5: % | F5: P TOTAL
B6: 1 | C6: 1 | D6: Estudos Básicos (EB) | E6: =F6/$F$27 -> 0.4180779353 | F6: ='CRO1_Ins-Pro'!H17 -> 175231.414
B7: 1 | C7: 1.1 | D7: Serviços Topográficos/Cartográficos | E7: =F7/F6 -> 0.1333840175 | F7: ='CRO1_Ins-Pro'!F15 -> 23373.07
B8: 1 | C8: 1.2 | D8: Serviços Geológicos/Geotécnicos | E8: =F8/F6 -> 0.7334764188 | F8: ='CRO1_Ins-Pro'!F16 -> 128528.11
B9: 1 | C9: 1.3 | D9: Estudos Hidrológicos e Hidrogeológicos | E9: 0.038 | F9: =E9*F6 -> 6658.793732
B10: 1 | C10: 1.4 | D10: Relatório de Avaliação Fundiária | E10: 0.0314 | F10: =E10*F6 -> 5502.2664
B11: 1 | C11: 1.5 | D11: Estudos de Tráfego | E11: =1-SUM(E7:E10) -> 0.06373956366 | F11: =E11*F7 -> 1489.789283
B12: 2 | C12: 2 | D12: Estudo de Viabilidade Técnica, Econômica e Ambiental (EVTEA) | E12: =F12/$F$27 -> 0.1931949534 | F12: ='CRO1_Ins-Pro'!I17 -> 80974.914
B13: 2 | C13: 2.1 | D13: Diagnóstico e Prognóstico | E13: 0.2185 | F13: =E13*F12 -> 17693.01871
B14: 2 | C14: 2.2 | D14: Análise da Viabilidade Ambiental | E14: 0.1856 | F14: =E14*F12 -> 15028.94404
B15: 2 | C15: 2.3 | D15: Avaliação Socioeconômica | E15: 0.2258 | F15: =E15*F12 -> 18284.13558
B16: 2 | C16: 2.4 | D16: Análise Técnica-Econômica-Ambiental | E16: =1-SUM(E13:E15) -> 0.3701 | F16: =E16*F12 -> 29968.81567
B17: 3 | C17: 3 | D17: Projeto Básico (PB) | E17: =F17/$F$27 -> 0.2849860375 | F17: ='CRO1_Ins-Pro'!J17 -> 119447.84
B18: 3 | C18: 3.1 | D18: Projeto Geométrico | E18: 0.0243 | F18: =E18*$F$17 -> 2902.582512
B19: 3 | C19: 3.3 | D19: Projeto de Terraplenagem | E19: 0.0914 | F19: 10917.53258
B20: 3 | C20: 3.4 | D20: Projeto de Drenagem | E20: 0.1112 | F20: 13282.59981
B21: 3 | C21: 3.5 | D21: Projeto de Pavimentação | E21: 0.0754 | F21: 9006.367136
B22: 3 | C22: 3.6 | D22: Projeto de Sinalização | E22: 0.0568 | F22: 6784.637312
B23: 3 | C23: 3.7 | D23: Projeto de Iluminação Pública | E23: 0.0679 | F23: 8110.508336
B24: 3 | C24: 3.8 | D24: Projeto de Obra de Arte Especial | E24: =1-SUM(E18:E23) -> 0.573 | F24: =E24*$F$17 -> 68443.61232
B25: 4 | C25: 4 | D25: Projeto Executivo (PE) | E25: =F25/$F$27 -> 0.1037410738 | F25: ='CRO1_Ins-Pro'!K17 -> 43481.594
F27: =F25+F17+F12+F6 -> 419135.762

Sheet Cronograma Físico-Financeiro
B1: CRONOGRAMA FÍSICO-FINANCEIRO
D4: Mês 1 | E4: Mês 2 | F4: Mês 3 | G4: Mês 4 | H4: Mês 5
B5: Estudos Básicos (EB) | C5: ='CRO1_Ins-Pro'!H17 -> 175231.414 | D5: =D6*$C$5 -> 140185.1312 | E5: 35046.2828 | F5: 0 | G5: 0 | H5: 0 | I5: =SUM(D5:H5) -> 175231.414
D6: 0.8 | E6: 0.2 | I6: 1
B7: Estudo de Viabilidade Técnica, Econômica e Ambiental (EVTEA) | C7: ='CRO1_Ins-Pro'!I17 -> 80974.914 | D7: =D8*$C$7 -> 40487.457 | E7: 40487.457 | F7: 0 | G7: 0 | H7: 0 | I7: 80974.914
D8: 0.5 | E8: 0.5 | I8: 1
B9: Projeto Básico (PB) | C9: ='CRO1_Ins-Pro'!J17 -> 119447.84 | D9: =D10*$C$9 -> 0 | E9: 0 | F9: 59723.92 | G9: 59723.92 | H9: 0 | I9: 119447.84
F10: 0.5 | G10: 0.5 | I10: 1
B11: Projeto Executivo (PE) | C11: ='CRO1_Ins-Pro'!K17 -> 43481.594 | D11: =D12*$C$11 -> 0 | E11: 0 | F11: 0 | G11: 0 | H11: 43481.594 | I11: 43481.594
H12: 1 | I12: 1
B14: NO MÊS | D14: =D5+D7+D9+D11 -> 180672.5882 | E14: 75533.7398 | F14: 59723.92 | G14: 59723.92 | H14: 43481.594 | I14: =SUM(D14:H14) -> 419135.762
D15: =D14/SUM($C$5:$C$12) -> 0.431059825 | E15: 0.1802130638 | F15: 0.1424930188 | G15: 0.1424930188 | H15: 0.1037410738 | I15: =SUM(D15:H15) -> 1
B16: ACUMULADO | D16: =D14 -> 180672.5882 | E16: =D16+E14 -> 256206.328 | F16: 315930.248 | G16: 375654.168 | H16: 419135.762
D17: =D15 -> 0.431059825 | E17: 0.6112728887 | F17: 0.7537659075 | G17: 0.8962589262 | H17: 1
